lending/lending_fUSD_20240112
["ID","MTS","AMOUNT","RATE_DAILY","PERIOD"]
[311284774,1705018242870,-333.40112,0.00035598,2]
[311284777,1705018242879,-750.0,0.000356,2]
[311284780,1705018242888,-8750.0,0.00035613,2]
[311284783,1705018242897,-525.56288472,0.00035614,7]
[311284786,1705018242907,-153.84,0.00035616,2]
[311284789,1705018242916,-151.0,0.00035616,7]
[311284791,1705018242925,-151.0,0.00035616,7]
[311284793,1705018242935,-151.0,0.00035616,7]
[311284795,1705018242944,-151.0,0.00035616,7]
[311284797,1705018242954,-151.0,0.00035616,7]
[311284799,1705018242963,-162.583023,0.00035616,7]
[311284801,1705018242973,-151.0,0.00035616,7]
[311284803,1705018242982,-151.0,0.00035616,7]
[311284805,1705018242992,-151.0,0.00035616,7]
[311284807,1705018243001,-151.0,0.00035616,7]
[311284809,1705018243011,-151.0,0.00035616,7]
[311284811,1705018243020,-151.0,0.00035616,7]
[311284813,1705018243030,-151.0,0.00035616,7]
[311284815,1705018243039,-151.0,0.00035616,7]
[311284818,1705018243049,-151.0,0.00035616,7]
[311284820,1705018243059,-151.0,0.00035616,7]
[311284821,1705018243068,-151.0,0.00035616,7]
[311284824,1705018243077,-151.0,0.00035616,7]
[311284826,1705018243087,-151.0,0.00035616,7]
[311284828,1705018243097,-215.90155,0.00035616,7]
[311284830,1705018243109,-215.90155,0.00035616,7]
[311284832,1705018243120,-215.90155,0.00035616,7]
[311284834,1705018243130,-215.90155,0.00035616,7]
[311284836,1705018243140,-151.0,0.00035616,7]
[311284838,1705018243150,-151.0,0.00035616,7]
[311284840,1705018243160,-151.0,0.00035616,7]
[311284842,1705018243169,-151.0,0.00035616,7]
[311284844,1705018243178,-151.0,0.00035616,7]
[311284846,1705018243188,-151.0,0.00035616,7]
[311284848,1705018243197,-151.0,0.00035616,7]
[311284850,1705018243206,-867.669624,0.00035616,7]
[311284852,1705018243215,-867.669624,0.00035616,7]
[311284854,1705018243226,-867.669624,0.00035616,7]
[311284856,1705018243235,-867.669624,0.00035616,7]
[311284858,1705018243245,-867.669624,0.00035616,7]
[311284860,1705018243254,-867.669624,0.00035616,7]
[311284862,1705018243263,-459.040378,0.00035616,7]
[311284864,1705018243272,-459.040378,0.00035616,7]
[311284866,1705018243281,-459.040378,0.00035616,7]
[311284868,1705018243290,-459.040378,0.00035616,7]
[311284870,1705018243300,-459.040378,0.00035616,7]
[311284872,1705018243309,-459.040378,0.00035616,7]
[311284874,1705018243318,-151.0,0.00035616,7]
[311284876,1705018243330,-151.0,0.00035616,7]
[311284878,1705018243371,-151.0,0.00035616,7]
[311284880,1705018243380,-377.126342,0.00035616,7]
[311284882,1705018243389,-377.126342,0.00035616,7]
[311284884,1705018243398,-377.126342,0.00035616,7]
[311284886,1705018243408,-377.126342,0.00035616,7]
[311284889,1705018243417,-377.126342,0.00035616,7]
[311284891,1705018243426,-377.126342,0.00035616,7]
[311284893,1705018243435,-151.0,0.00035616,7]
[311284895,1705018243444,-151.0,0.00035616,7]
[311284897,1705018243453,-151.0,0.00035616,7]
[311284898,1705018243462,-151.0,0.00035616,7]
[311284901,1705018243472,-151.0,0.00035616,7]
[311284903,1705018243481,-151.0,0.00035616,7]
[311284905,1705018243490,-151.0,0.00035616,7]
[311284907,1705018243499,-151.0,0.00035616,7]
[311284909,1705018243509,-151.0,0.00035616,7]
[311284911,1705018243518,-151.0,0.00035616,7]
[311284913,1705018243528,-151.0,0.00035616,7]
[311284915,1705018243537,-151.0,0.00035616,7]
[311284917,1705018243546,-227.425634,0.00035616,7]
[311284919,1705018243555,-151.0,0.00035616,7]
[311284921,1705018243565,-263.901843,0.00035616,7]
[311284923,1705018243573,-304.694743,0.00035616,7]
[311284925,1705018243582,-304.694743,0.00035616,7]
[311284927,1705018243591,-304.694743,0.00035616,7]
[311284929,1705018243601,-304.694743,0.00035616,7]
[311284931,1705018243614,-304.694743,0.00035616,7]
[311284933,1705018243624,-304.694743,0.00035616,7]
[311284935,1705018243633,-152.29,0.00035662,2]
[311284937,1705018243642,-333.40112,0.00035698,2]
[311284939,1705018243651,-8750.0,0.000357,2]
[311284941,1705018243660,-260.872894,0.00035711,7]
[311284943,1705018243669,-152.4,0.00035731,2]
[311284962,1705018243678,-8750.0,0.00035788,2]
[311284964,1705018243844,-520.95,0.00035798,2]
[311284966,1705018243853,-333.40112,0.00035798,2]
[311284968,1705018243862,-2450.16,0.000358,7]
[311284970,1705018243871,-10012.55,0.000358,7]
[311284972,1705018243879,-4607.33,0.000358,7]
[311284974,1705018243888,-152.29,0.00035834,2]
[311284976,1705018243897,-8750.0,0.00035875,2]
[311284978,1705018243906,-333.40112,0.00035898,2]
[311284980,1705018243915,-3000.0,0.000359,2]
[311284982,1705018243924,-343.0,0.000359,2]
[311284984,1705018243933,-863.0,0.000359,2]
[311284986,1705018243942,-709.39,0.0003592,2]
[311284988,1705018243952,-5028.44485964,0.00035963,2]
[311284990,1705018243965,-3721.55514036,0.00035963,2]
[311284992,1705018243974,-202.08,0.00035993,2]
[311284994,1705018243984,-333.40112,0.00035998,2]
[311284996,1705018243993,-100000.0,0.00036,6]
[311284998,1705018244004,-150.0,0.00036,3]
[311285000,1705018244013,-299.999999,0.00036,37]
[311285002,1705018244021,-300.0,0.00036,10]
[311285004,1705018244030,-150.0,0.00036,10]
[311285006,1705018244039,-1013.963449,0.00036,2]
[311285008,1705018244048,-8750.0,0.0003605,2]
[311285010,1705018244057,-200.0,0.00036075,5]
[311285012,1705018244066,-154.6681266,0.00036089,2]
[311285014,1705018244075,-154.66812659,0.00036089,2]
[311285016,1705018244084,-333.40112,0.00036098,4]
[311285018,1705018244094,-152.4,0.00036103,2]
[311285020,1705018244102,-8750.0,0.00036138,2]
[311285022,1705018244112,-525.56288472,0.00036185,7]
[311285024,1705018244122,-333.40112,0.00036198,4]
[311285026,1705018244131,-8750.0,0.00036225,2]
[311285028,1705018244141,-250.0,0.00036226,2]
[311285030,1705018244150,-202.0,0.00036259,17]
[311285032,1705018244159,-333.40112,0.00036298,4]
[311285034,1705018244168,-152.13,0.00036301,2]
[311285037,1705018244178,-8750.0,0.00036313,2]
[311285039,1705018244188,-640.0,0.00036333,2]
[311285041,1705018244197,-333.40112,0.00036398,4]
[311285043,1705018244206,-8750.0,0.000364,2]
[311285045,1705018244215,-151.0,0.000364,7]
[311285047,1705018244224,-291.393343,0.000364,7]
[311285048,1705018244233,-151.0,0.000364,7]
[311285049,1705018244242,-151.03325826,0.00036458,2]
[311285050,1705018244251,-645.56,0.00036469,2]
[311285051,1705018244260,-152.4,0.00036475,2]
[311285052,1705018244269,-151.0,0.00036487,7]
[311285053,1705018244278,-867.669624,0.00036487,7]
[311285054,1705018244287,-867.669624,0.00036487,7]
[311285055,1705018244296,-459.040378,0.00036487,7]
[311285056,1705018244308,-459.040378,0.00036487,7]
[311285058,1705018244318,-377.126342,0.00036487,7]
[311285060,1705018244326,-377.126342,0.00036487,7]
[311285062,1705018244336,-8750.0,0.00036488,2]
[311285064,1705018244345,-333.40112,0.00036498,4]
[311285066,1705018244356,-30000.0,0.000365,6]
[311285068,1705018244365,-304.694743,0.000365,7]
[311285070,1705018244373,-304.694743,0.000365,7]
[311285072,1705018244382,-153.84,0.0003653,2]
[311285074,1705018244391,-3000.0,0.0003653,2]
[311285076,1705018244401,-8750.0,0.00036575,2]
[311285077,1705018244410,-333.40112,0.00036598,4]
[311285080,1705018244420,-830.15,0.00036613,15]
[311285081,1705018244429,-8750.0,0.00036663,2]
[311285083,1705018244438,-239.62611259,0.00036668,9]
[311285085,1705018244447,-239.62611259,0.00036668,9]
[311285088,1705018244458,-239.62611259,0.00036668,9]
[311285089,1705018244466,-239.62611259,0.00036668,9]
[311285092,1705018244476,-333.40112,0.00036698,4]
[311285094,1705018244485,-2900.0,0.00036735,2]
[311285096,1705018244495,-4464.464,0.00036735,2]
[311285098,1705018244503,-19673.0,0.00036735,2]
[311285100,1705018244512,-2338.582,0.00036735,2]
[311285102,1705018244521,-2269.0,0.00036735,2]
[311285103,1705018244530,-1028.0,0.00036735,2]
[311285105,1705018244540,-8750.0,0.0003675,2]
[311285107,1705018244549,-525.56288472,0.00036757,8]
[311285109,1705018244558,-333.40112,0.00036798,4]
[311285111,1705018244567,-40142.90045061,0.000368,2]
[311285113,1705018244576,-314.07,0.00036804,2]
[311285115,1705018244586,-314.07,0.00036804,2]
[311285117,1705018244595,-628.14,0.00036804,2]
[311285119,1705018244605,-314.07,0.00036804,2]
[311285122,1705018244614,-8750.0,0.00036838,2]
[311285124,1705018244623,-151.0,0.00036838,7]
[311285126,1705018244633,-186.488682,0.00036838,7]
[311285127,1705018244643,-151.0,0.00036838,7]
[311285130,1705018244653,-151.0,0.00036838,7]
[311285132,1705018244662,-151.0,0.00036838,7]
[311285134,1705018244671,-151.0,0.00036838,7]
[311285136,1705018244681,-215.90155,0.00036838,7]
[311285138,1705018244691,-215.90155,0.00036838,7]
[311285140,1705018244699,-152.4,0.00036847,2]
[311285142,1705018244709,-333.40112,0.00036898,4]
[311285144,1705018244718,-151.0,0.00036898,7]
[311285146,1705018244727,-709.39,0.00036898,2]
[311285148,1705018244736,-1000.0,0.00036899,2]
[311285150,1705018244745,-874.52169429,0.000369,8]
[311285152,1705018244754,-8750.0,0.00036925,2]
[311285154,1705018244763,-200.0,0.0003699,7]
[311285156,1705018244772,-510.34380681,0.00036997,2]
[311285158,1705018244781,-333.40112,0.00036998,4]
[311285160,1705018244790,-151.0,0.00036999,7]
[311285162,1705018244799,-150.0,0.00036999,2]
[311285164,1705018244808,-150.0,0.00036999,2]
[311285166,1705018244817,-150.0,0.00036999,2]
[311285168,1705018244826,-150.0,0.00036999,2]
[311285170,1705018244837,-150.0,0.00036999,2]
[311285172,1705018244846,-150.0,0.00036999,2]
[311285174,1705018244855,-150.0,0.00036999,2]
[311285176,1705018244864,-150.0,0.00036999,2]
[311285178,1705018244873,-150.0,0.00036999,2]
[311285180,1705018244882,-150.0,0.00036999,2]
[311285182,1705018244891,-100000.0,0.00037,7]
[311285184,1705018244900,-5000.0,0.00037,3]
[311285186,1705018244909,-1397.68747687,0.00037,7]
[311285188,1705018244918,-95218.28975093,0.00037,7]
[311285289,1705018245814,-1260.21245094,0.0002899,2]
[311285292,1705018245823,-1855.20758916,0.00033082,5]
[311285297,1705018245838,-259.6599751,0.00033082,5]
[311285302,1705018245870,-2828.0382023,0.00033082,5]
[311285304,1705018245880,-2878.06432367,0.00037,7]
[311285307,1705018245897,-10221.16517317,0.00037,7]
[311285311,1705018245909,-16188.24772307,0.00037,7]
[311285313,1705018245919,-12761.34459,0.00037,7]
[311285317,1705018245934,-10686.741002,0.00037,7]
[311285321,1705018245949,-858.49651684,0.00037,7]
[311285326,1705018245964,-10815.69591583,0.00037,7]
[311285535,1705018247821,-1260.21245094,0.0003508,2]
[311285537,1705018247830,-4262.79617984,0.00037,7]
[311285540,1705018247849,-4500.45000344,0.00037,7]
[311285550,1705018247933,-4613.29187626,0.00037,7]
[311285552,1705018247944,-345.55347551,0.00037,7]
[311286101,1705019238099,-295.08684247,0.00022898,2]
[311286102,1705019238121,-323.37228421,0.00022899,2]
[311286116,1705019432192,-154.36456921,0.00022799,2]
[311286117,1705019432202,-4770.84867024,0.00022899,2]
[311286118,1705019432212,-150.0,0.00022899,2]
[311286119,1705019432221,-699.4852,0.000229,2]
[311286120,1705019432230,-1977.0299,0.000229,2]
[311286121,1705019432239,-154.36456909,0.00023555,2]
[311286122,1705019432249,-154.36456909,0.00024312,2]
[311286123,1705019432258,-203.0,0.00024626,2]
[311286124,1705019432267,-202.0,0.00024626,2]
[311286125,1705019432277,-200.0,0.00025,2]
[311286126,1705019432288,-1581.98629386,0.00025,2]
[311286127,1705019432298,-154.36456909,0.00025068,2]
[311286128,1705019432308,-210.0,0.00025189,2]
[311286129,1705019432318,-154.36456909,0.00025824,2]
[311286130,1705019432328,-499.99,0.00025824,2]
[311286131,1705019432338,-203.0,0.00025987,4]
[311286132,1705019432353,-154.36456909,0.00026581,2]
[311286133,1705019432364,-154.36456909,0.00027337,2]
[311286134,1705019432374,-203.0,0.00027347,6]
[311286135,1705019432384,-250.0,0.000274,2]
[311286136,1705019432393,-1532.9,0.00027707,2]
[311286137,1705019432403,-150.99,0.00027708,2]
[311286138,1705019432413,-47971.38117244,0.00027708,2]
[311286139,1705019432425,-11639.58882756,0.00027708,2]
[311286140,1705019432435,-236.0,0.00027708,2]
[311286142,1705019432446,-589.32,0.00027834,2]
[311286144,1705019432456,-154.36456909,0.00028093,2]
[311286147,1705019432466,-633.89,0.0002822,2]
[311286148,1705019432476,-250.0,0.0002827,2]
[311286149,1705019432486,-250.0,0.00028302,2]
[311286150,1705019432495,-1321.89,0.00028598,4]
[311286151,1705019432505,-365.86403282,0.00028598,2]
[311286152,1705019432514,-252.59363903,0.00028598,2]
[311286154,1705019432524,-397.56823754,0.00028598,2]
[311286156,1705019432533,-4259.01669385,0.00028599,2]
[311286157,1705019432542,-229.1236873,0.000286,2]
[311286158,1705019432552,-2000.0,0.00028699,2]
[311286159,1705019432561,-2992.0,0.000287,2]
[311286160,1705019432571,-27888.0,0.000287,2]
[311286161,1705019432581,-1091.2,0.000287,2]
[311286162,1705019432594,-203.0,0.00028708,8]
[311286163,1705019432836,-792.6,0.00028738,2]
[311286164,1705019432854,-152.46,0.00028808,2]
[311286165,1705019432863,-154.36456909,0.0002885,2]
[311286166,1705019432872,-152.46,0.00028915,2]
[311286167,1705019432882,-341.12075405,0.00028989,2]
[311286168,1705019432891,-152.4,0.00029003,2]
[311286169,1705019432901,-152.46,0.00029022,2]
[311286170,1705019432910,-167.28,0.00029108,2]
[311286171,1705019432920,-152.46,0.0002913,2]
[311286172,1705019432930,-152.46,0.00029237,2]
[311286173,1705019432940,-152.46,0.00029344,2]
[311286174,1705019432950,-193.52,0.00029347,2]
[311286175,1705019432959,-150.0,0.00029407,2]
[311286176,1705019432969,-3962.96,0.00029429,2]
[311286177,1705019432978,-200.0,0.0002943,2]
[311286178,1705019432987,-152.46,0.00029451,2]
[311286179,1705019432996,-164.43,0.00029501,2]
[311286180,1705019433006,-152.4,0.00029549,2]
[311286181,1705019433015,-152.46,0.00029558,2]
[311286182,1705019433024,-3962.96,0.00029599,2]
[311286183,1705019433034,-154.36456909,0.00029606,2]
[311286184,1705019433044,-23900.0,0.0002966,2]
[311286185,1705019433053,-152.46,0.00029666,2]
[311286186,1705019433062,-152.29,0.00029689,2]
[311286187,1705019433072,-792.6,0.00029717,2]
[311286188,1705019433083,-2503.01,0.00029723,2]
[311286189,1705019433094,-3962.96,0.00029769,2]
[311286190,1705019433103,-152.46,0.00029773,2]
[311286191,1705019433112,-152.46,0.0002988,2]
[311286192,1705019433121,-1000.0,0.00029916,2]
[311286193,1705019433130,-167.48,0.00029922,2]
[311286194,1705019433138,-3962.96,0.00029939,2]
[311286195,1705019433148,-152.29,0.00029986,2]
[311286196,1705019433157,-152.46,0.00029987,2]
[311286197,1705019433166,-1572.87627363,0.0003,2]
[311286198,1705019433175,-155.0,0.0003,2]
[311286199,1705019433184,-2734.96538905,0.0003,2]
[311286200,1705019433193,-203.0,0.00030068,10]
[311286201,1705019433203,-152.4,0.00030094,2]
[311286202,1705019433212,-152.46,0.00030095,2]
[311286203,1705019433221,-589.32,0.00030098,2]
[311286204,1705019433230,-3962.96,0.00030109,2]
[311286205,1705019433240,-10000.0,0.00030137,2]
[311286206,1705019433249,-152.46,0.00030202,2]
[311286207,1705019433258,-229.12368729,0.0003025,2]
[311286208,1705019433268,-3962.96,0.00030279,2]
[311286209,1705019433277,-152.29,0.00030283,2]
[311286210,1705019433285,-155.21,0.00030294,2]
[311286211,1705019433295,-152.46,0.00030309,2]
[311286212,1705019433304,-154.36456909,0.00030362,2]
[311286213,1705019433313,-3962.96,0.00030449,2]
[311286214,1705019433322,-341.75664799,0.00030554,2]
[311286215,1705019433332,-152.29,0.0003058,2]
[311286216,1705019433341,-3962.96,0.00030619,2]
[311286217,1705019433353,-152.4,0.0003064,2]
[311286218,1705019433362,-792.6,0.00030695,2]
[311286219,1705019433372,-3962.96,0.00030789,2]
[311286220,1705019433382,-151.72,0.00030839,2]
[311286221,1705019433391,-152.29,0.00030876,2]
[311286222,1705019433400,-3962.96,0.00030959,2]
[311286223,1705019433409,-155.21,0.00031006,2]
[311286224,1705019433418,-153.84,0.00031068,2]
[311286225,1705019433427,-154.36456909,0.00031118,2]
[311286226,1705019433436,-152.29,0.00031173,2]
[311286227,1705019433445,-152.4,0.00031185,2]
[311286228,1705019433455,-203.0,0.00031429,13]
[311286229,1705019433464,-152.29,0.0003147,2]
[311286230,1705019433473,-165.05,0.00031644,2]
[311286231,1705019433483,-792.6,0.00031673,2]
[311286232,1705019433492,-155.21,0.00031718,2]
[311286233,1705019433501,-152.4,0.00031731,2]
[311286234,1705019433511,-152.29,0.00031767,2]
[311286235,1705019433521,-154.36456909,0.00031875,2]
[311286236,1705019433530,-873.83236756,0.000319,5]
[311286237,1705019433539,-229.12368729,0.000319,2]
[311286238,1705019433548,-33439.7150447,0.0003199,3]
[311286239,1705019433557,-176.57,0.00031999,2]
[311286240,1705019433567,-176.57,0.00031999,2]
[311286241,1705019433576,-176.57,0.00031999,2]
[311286242,1705019433585,-176.57,0.00031999,2]
[311286243,1705019433595,-176.57,0.00031999,2]
[311286244,1705019433604,-173559.82731972,0.00032,2]
[311286245,1705019433613,-155.68374332,0.00032,2]
[311286246,1705019433622,-153.84,0.00032009,2]
[311286247,1705019433631,-152.29,0.00032064,2]
[311286248,1705019433640,-151.72,0.00032209,2]
[311286249,1705019433649,-152.4,0.00032277,2]
[311286250,1705019433658,-193.52,0.00032282,2]
[311286251,1705019433667,-152.29,0.00032361,2]
[311286252,1705019433676,-589.32,0.00032362,2]
[311286253,1705019433685,-155.21,0.00032431,2]
[311286254,1705019433694,-154.36456909,0.00032631,2]
[311286255,1705019433703,-792.6,0.00032652,2]
[311286256,1705019433712,-152.29,0.00032658,2]
[311286257,1705019433723,-873.83236755,0.00032743,6]
[311286258,1705019433732,-203.0,0.00032789,15]
[311286259,1705019433740,-152.4,0.00032822,2]
[311286260,1705019433750,-914.47496769,0.00032829,3]
[311286261,1705019433759,-8359.92876118,0.00032867,4]
[311286262,1705019433770,-830.15,0.00032877,15]
[311286263,1705019433779,-3871.0,0.00032877,7]
[311286264,1705019433789,-155.0,0.0003293,4]
[311286265,1705019433798,-153.84,0.00032951,2]
[311286266,1705019433807,-155.21,0.00033143,2]
[311286267,1705019433817,-186.97,0.00033182,2]
[311286268,1705019433826,-212.2,0.00033188,2]
[311286269,1705019433839,-212.2,0.00033363,2]
[311286270,1705019433851,-152.4,0.00033368,2]
[311286271,1705019433861,-154.36456909,0.00033387,2]
[311286272,1705019433871,-212.2,0.00033538,2]
[311286273,1705019433880,-873.83236755,0.00033586,6]
[311286274,1705019433889,-792.6,0.0003363,2]
[311286275,1705019433898,-1000.0,0.00033656,2]
[311286276,1705019433908,-212.2,0.00033712,2]
[311286277,1705019433919,-500.0,0.00033728,2]
[311286278,1705019433928,-155.21,0.00033855,2]
[311286279,1705019433937,-212.2,0.00033887,2]
[311286280,1705019433946,-153.84,0.00033892,2]
[311286281,1705019433955,-152.4,0.00033913,2]
[311286282,1705019433965,-1000.0,0.00034,4]
[311286283,1705019433973,-201.6432844,0.00034,2]
[311286284,1705019433982,-802.19636617,0.00034,4]
[311286285,1705019433991,-155.0,0.00034,2]
[311286286,1705019434000,-161.22,0.00034003,2]
[311286287,1705019434009,-500.0,0.00034059,2]
[311286288,1705019434018,-212.2,0.00034062,2]
[311286289,1705019434027,-154.36456909,0.00034144,2]
[311286290,1705019434036,-203.0,0.0003415,17]
[311286291,1705019434046,-212.2,0.00034236,2]
[311286292,1705019434055,-351.28,0.000343,2]
[311286293,1705019434064,-7033.0,0.00034303,2]
[311286294,1705019434073,-8359.92876118,0.00034345,7]
[311286295,1705019434083,-2062.29857992,0.00034353,2]
[311286296,1705019434092,-4942.90576656,0.00034355,6]
[311286297,1705019434102,-500.0,0.00034389,2]
[311286298,1705019434110,-541.51209612,0.00034396,4]
[311286299,1705019434119,-363.3248794,0.00034396,4]
[311286300,1705019434127,-298.18115197,0.00034396,4]
[311286301,1705019434137,-2039.52686037,0.00034396,2]
[311286302,1705019434145,-284.98811969,0.00034396,4]
[311286303,1705019434154,-212.2,0.00034411,2]
[311286304,1705019434164,-873.83236755,0.00034429,7]
[311286305,1705019434173,-152.4,0.00034459,2]
[311286306,1705019434182,-485.507586,0.0003452,2]
[311286307,1705019434191,-346.791133,0.0003452,2]
[311286308,1705019434200,-346.791133,0.0003452,2]
[311286309,1705019434209,-520.95,0.00034521,2]
[311286310,1705019434218,-155.21,0.00034568,2]
[311286311,1705019434227,-212.2,0.00034586,2]
[311286312,1705019434237,-792.6,0.00034609,2]
[311286313,1705019434246,-589.32,0.00034626,2]
[311286314,1705019434256,-8359.92876118,0.0003464,7]
[311286315,1705019434265,-170.2,0.00034645,2]
[311286316,1705019434274,-180.0,0.00034658,2]
[311286317,1705019434283,-200.0,0.00034668,10]
[311286318,1705019434292,-800.0,0.00034668,5]
[311286319,1705019434301,-500.0,0.0003472,2]
[311286320,1705019434310,-212.2,0.00034761,2]
[311286321,1705019434319,-728.26138,0.00034794,2]
[311286322,1705019434328,-520.1867,0.00034794,2]
[311286323,1705019434337,-520.186699,0.00034794,2]
[311286324,1705019434348,-153.84,0.00034833,2]
[311286325,1705019434357,-610.82874271,0.000349,4]
[311286326,1705019434365,-1060.48655931,0.000349,2]
[311286327,1705019434374,-151.03325826,0.000349,2]
[311286328,1705019434383,-154.36456909,0.000349,2]
[311286329,1705019434392,-971.015173,0.00034931,2]
[311286330,1705019434401,-693.582267,0.00034931,2]
[311286331,1705019434410,-693.582266,0.00034931,2]
[311286332,1705019434420,-212.2,0.00034935,2]
[311286333,1705019434429,-159.58540463,0.0003498,2]
[311286334,1705019434439,-176.58,0.00034989,2]
[311286335,1705019434448,-176.58,0.00034989,2]
[311286336,1705019434457,-4045.69993045,0.0003499,8]
[311286337,1705019434786,-1003.30335493,0.0003499,8]
[311286338,1705019434798,-433.59794111,0.0003499,8]
[311286339,1705019434817,-496.5,0.0003499,8]
[311286340,1705019434833,-64641.12517222,0.0003499,8]
[311286341,1705019434844,-930.78369381,0.0003499,8]
[311286343,1705019438193,-214.06,0.0003199,10]
[311286344,1705019438203,-154167.06645948,0.0003499,8]
[311286345,1705019438212,-170.11460227,0.00034997,2]
[311286346,1705019438222,-176.6024182,0.00034999,2]
[311286347,1705019438231,-264.90362729,0.00034999,2]
[311286348,1705019438240,-555.67016055,0.00035,10]
[311286349,1705019438250,-255.41007841,0.00035,4]
[311286350,1705019438260,-8749.99,0.00035,2]
[311286351,1705019438269,-1804.3259406,0.00035,4]
[311286352,1705019438278,-8749.99,0.00035,2]
[311286353,1705019438287,-16499.22203045,0.00035,2]
[311286354,1705019438297,-688706.81421779,0.00035,2]
[311286355,1705019438306,-8749.99,0.00035,2]
[311286356,1705019438315,-2500.0,0.00035,2]
[311286357,1705019438324,-8749.99,0.00035,2]
[311286358,1705019438335,-8749.99,0.00035,2]
[311286359,1705019438344,-8749.99,0.00035,2]
[311286360,1705019438354,-8749.99,0.00035,2]
[311286361,1705019438363,-8749.99,0.00035,2]
[311286362,1705019438372,-8750.0,0.00035,2]
[311286363,1705019438382,-8749.99,0.00035,2]
[311286364,1705019438391,-8749.99,0.00035,2]
[311286365,1705019438400,-5028.44,0.00035,2]
[311286366,1705019438409,-8749.99,0.00035,2]
[311286367,1705019438418,-8750.0,0.00035,2]
[311286368,1705019438428,-8750.0,0.00035,2]
[311286369,1705019438437,-200.0,0.00035,5]
[311286370,1705019438448,-8750.0,0.00035,2]
[311286371,1705019438457,-8749.99,0.00035,2]
[311286372,1705019438467,-8750.0,0.00035,2]
[311286373,1705019438477,-150000.0,0.00035,3]
[311286374,1705019438486,-8750.0,0.00035,2]
[311286375,1705019438495,-8749.99,0.00035,2]
[311286376,1705019438505,-150000.0,0.00035,3]
[311286377,1705019438514,-150000.0,0.00035,3]
[311286378,1705019438524,-619.07656999,0.00035,4]
[311286379,1705019438533,-213343.73974137,0.00035,2]
[311286380,1705019438543,-185.50990881,0.00035,4]
[311286381,1705019438554,-4795.82816389,0.00035,7]
[311286382,1705019438564,-150000.0,0.00035,3]
[311286383,1705019438575,-289.76331463,0.00035,2]
[311286384,1705019438585,-111395.57331273,0.00035,3]
[311286385,1705019438597,-1213.768967,0.00035068,2]
[311286386,1705019438608,-866.977833,0.00035068,2]
[311286387,1705019438618,-866.977833,0.00035068,2]
[311286389,1705019438629,-500.0,0.00035087,2]
[311286392,1705019438639,-500.0,0.00035087,2]
[311286393,1705019438648,-500.0,0.00035087,2]
[311286395,1705019438658,-500.0,0.00035087,2]
[311286397,1705019438667,-500.0,0.00035087,2]
[311286399,1705019438676,-500.0,0.00035087,2]
[311286402,1705019438685,-500.0,0.00035087,2]
[311286403,1705019438694,-500.0,0.00035087,2]
[311286405,1705019438704,-500.0,0.00035087,2]
[311286408,1705019438713,-250.0,0.00035087,2]
[311286410,1705019438722,-500.0,0.00035087,2]
[311286412,1705019438731,-500.0,0.00035087,2]
[311286413,1705019438740,-500.0,0.00035087,2]
[311286415,1705019438750,-500.0,0.00035087,2]
[311286416,1705019438759,-500.0,0.00035087,2]
[311286417,1705019438768,-500.0,0.00035087,2]
[311286418,1705019438777,-500.0,0.00035087,2]